bitfinex/quotes_SOLUSD_20241010
["timestamp","ask_amount","ask_price","bid_price","bid_amount"]
[1728570081444,8.74477188,137.05,137.01,7.2986]
[1728570081641,7.2974,137.04,136.99,25.5484]
[1728570082034,7.2977,137.03,136.99,25.5484]
[1728570082237,7.2972,137.04,137.0,7.2991]
[1728570082432,1.44807188,137.07,136.99,18.249]
[1728570082732,7.2968,137.05,137.0,0.25098]
[1728570083059,18.2404,137.06,137.0,0.25098]
[1728570083246,1.44807188,137.05,137.0,0.25098]
[1728570083632,7.2964,137.06,137.02,7.2982]
[1728570083946,7.2964,137.06,137.03,1.45933149]
[1728570084150,7.2964,137.06,137.02,7.2982]
[1728570085050,7.2966,137.05,137.01,25.5448]
[1728570085361,7.2961,137.06,137.02,8.75705534]
[1728570085734,7.2961,137.06,137.02,7.2978]
[1728570085932,7.2969,137.05,137.01,25.545]
[1728570087041,7.2966,137.05,137.02,0.25098]
[1728570087253,18.239,137.07,136.98,20.25098]
[1728570087459,18.239,137.07,136.99,23.776884]
[1728570087652,7.2968,137.05,137.01,7.2982]
[1728570087848,1.44807188,137.1,137.0,18.49898]
[1728570088054,18.2378,137.08,137.0,18.49898]
[1728570088262,1.44807188,137.07,137.0,18.49898]
[1728570088650,7.2951,137.08,137.04,7.2969]
[1728570088848,1.44807188,137.1,137.05,1.45910113]
[1728570089064,1.44807188,137.1,137.06,7.2959]
[1728570089065,7.294,137.1,137.06,7.2959]
[1728570089367,6.131,137.16,137.05,24.027864]
[1728570089579,1.44807188,137.15,137.1,7.2937]
[1728570089877,1.44807188,137.15,137.09,7.54528]
[1728570090171,7.292,137.14,137.1,7.2935]
[1728570090355,1.44807188,137.17,137.11,0.25098]
[1728570090670,1.44807188,137.19,137.11,0.25098]
[1728570090970,1.44807188,137.19,137.12,6.0362]
[1728570091169,7.2898,137.18,137.13,9.00105838]
[1728570091676,7.2902,137.17,137.13,7.54288]
[1728570091973,1.44807188,137.19,137.12,31.5606]
[1728570091974,7.2909,137.16,137.12,31.5606]
[1728570092273,1.44807188,137.15,137.09,0.12549]
[1728570092580,7.2927,137.13,137.09,0.12549]
[1728570092752,7.2915,137.15,137.1,7.2936]
[1728570092955,1.44807188,137.14,137.09,7.2943]
[1728570093150,7.2919,137.14,137.09,7.2943]
[1728570093350,7.2919,137.14,137.08,24.8047]
[1728570093351,8.74047188,137.13,137.08,32.0995]
[1728570093977,7.2938,137.11,137.06,23.648]
[1728570094165,7.2933,137.12,137.07,7.2954]
[1728570094476,7.2925,137.13,137.08,8.7533584]
[1728570094672,1.44807188,137.15,137.08,1.4588584]
[1728570094879,7.2908,137.16,137.12,7.2927]
[1728570095077,1.44807188,137.18,137.13,7.2922]
[1728570095378,7.2912,137.15,137.1,18.2339]
[1728570095576,8.73997188,137.14,137.1,25.5274]
[1728570096449,7.2919,137.14,137.1,25.5274]
[1728570096851,1.44807188,137.17,137.1,25.5274]
[1728570097076,7.2914,137.15,137.11,7.2932]
[1728570098193,8.73837188,137.17,137.12,7.2924]
[1728570098489,7.2903,137.17,137.12,7.2924]
[1728570099266,1.44807188,137.16,137.1,18.2339]
[1728570099562,20.0,137.2,137.07,18.2378]
[1728570099563,1.44807188,137.19,137.07,18.2378]
[1728570099777,7.2933,137.12,137.08,7.42039]
[1728570099991,7.2933,137.12,137.07,25.5331]
[1728570100165,1.44807188,137.16,137.07,18.2378]
[1728570100476,1.44807188,137.16,137.09,18.2359]
[1728570100682,7.2913,137.15,137.11,7.293]
[1728570100858,1.44807188,137.14,137.09,18.2359]
[1728570101059,7.2914,137.15,137.1,7.2939]
[1728570101381,7.2914,137.15,137.11,7.2931]
[1728570101784,7.2909,137.16,137.12,7.2924]
[1728570102285,7.2914,137.15,137.11,25.5263]
[1728570102464,8.73947188,137.15,137.11,25.5263]
[1728570102664,7.2914,137.15,137.11,25.5263]
[1728570102878,1.44807188,137.18,137.11,18.233]
[1728570103188,8.73817188,137.18,137.14,7.2917]
[1728570103483,7.2892,137.19,137.15,7.2912]
[1728570103686,7.2897,137.18,137.14,8.74971512]
[1728570103859,7.2897,137.18,137.14,7.2916]
[1728570105596,7.2892,137.19,137.15,7.2912]
[1728570105920,1.44807188,137.21,137.14,6.89308]
[1728570106068,1.44807188,137.22,137.15,1.45789013]
[1728570106384,18.2158,137.25,137.17,18.2253]
[1728570106385,1.44807188,137.24,137.17,18.2253]
[1728570106862,7.2881,137.21,137.17,25.5153]
[1728570107182,7.2886,137.2,137.17,18.2253]
[1728570107484,7.2882,137.21,137.17,25.5154]
[1728570108068,8.73697188,137.2,137.16,7.2906]
[1728570108274,7.2897,137.18,137.14,48.76649]
[1728570108482,45.1013,137.27,137.14,48.76649]
[1728570108483,7.56906154,137.28,137.18,0.12549]
[1728570108682,0.8130491,137.32,137.22,7.2871]
[1728570108683,8.73307188,137.27,137.22,7.2871]
[1728570108897,7.2863,137.25,137.2,25.509]
[1728570109062,1.44807188,137.27,137.16,24.027864]
[1728570109384,7.2853,137.27,137.22,7.2871]
[1728570109573,1.44807188,137.26,137.22,7.2871]
[1728570109811,7.2844,137.28,137.23,8.74375409]
[1728570109985,1.44807188,137.29,137.23,1.45725409]
[1728570110183,7.2834,137.3,137.25,7.2857]
[1728570110388,7.2834,137.3,137.23,15.1222]
[1728570110389,7.2855,137.26,137.23,15.1222]
[1728570110612,7.2855,137.26,137.22,13.8554]
[1728570110900,7.2859,137.25,137.22,6.568]
[1728570111113,7.2858,137.26,137.22,6.568]
[1728570111279,7.2858,137.26,137.22,13.8554]
[1728570111484,7.2849,137.27,137.23,7.2868]
[1728570111907,7.2844,137.28,137.24,1.45708337]
[1728570112105,7.284,137.29,137.24,1.45708337]
[1728570112690,7.2834,137.3,137.25,18.2145]
[1728570112898,1.44807188,137.29,137.24,7.2863]
[1728570113117,2.26112098,137.32,137.24,7.2863]
[1728570113489,2.26112098,137.32,137.23,24.027864]
[1728570113717,8.0956491,137.32,137.25,24.027864]
[1728570113892,8.0956491,137.32,137.26,1.45661353]
[1728570114395,8.0956491,137.32,137.31,7.2827]
[1728570114396,0.8130491,137.32,137.31,7.2827]
[1728570114615,0.8130491,137.32,137.31,8.8645381]
[1728570114816,0.8130491,137.32,137.31,15.0615281]
[1728570115009,0.8130491,137.32,137.31,13.60518]
[1728570115196,0.8130491,137.32,137.31,13.3542]
[1728570115686,0.8130491,137.32,137.31,13.60518]
[1728570115885,0.8130491,137.32,137.3,18.2077]
[1728570116108,7.2829,137.31,137.28,6.028]
[1728570116826,7.2839,137.29,137.25,7.2858]
[1728570117119,7.2837,137.3,137.26,7.2854]
[1728570117326,7.2828,137.31,137.27,7.2848]
[1728570117532,0.8130491,137.32,137.28,7.2839]
[1728570117711,0.8130491,137.32,137.28,8.7405137]
[1728570117916,0.8130491,137.32,137.28,7.2839]
[1728570118325,9.54342098,137.32,137.27,7.2849]
[1728570118709,7.2837,137.3,137.26,18.213]
[1728570118928,7.2837,137.3,137.27,1.45672236]
[1728570119422,7.2829,137.31,137.26,25.498]
[1728570119608,7.2829,137.31,137.27,7.2847]
[1728570119817,1.44807188,137.3,137.24,6.6012]
[1728570120112,7.2843,137.29,137.25,8.7427805]
[1728570120496,7.2834,137.3,137.25,7.2859]
[1728570120999,7.2834,137.3,137.26,1.45674049]
[1728570121196,7.2834,137.3,137.26,7.2851]
[1728570121399,7.284,137.29,137.25,25.5]
[1728570121810,7.2834,137.3,137.26,8.74220933]
[1728570122201,7.2834,137.3,137.26,7.2854]
[1728570122402,2.26112098,137.32,137.25,18.2142]
[1728570122603,7.284,137.29,137.25,25.4999]
[1728570122821,7.284,137.29,137.25,18.2142]
[1728570123026,7.2847,137.28,137.24,14.01299]
[1728570123497,7.2839,137.29,137.24,6.72669]
[1728570123698,7.2839,137.29,137.25,7.2859]
[1728570123934,7.2829,137.31,137.27,7.2844]
[1728570124119,8.0956491,137.32,137.28,1.45664497]
[1728570124435,0.8130491,137.32,137.29,1.45664665]
[1728570124613,0.8130491,137.32,137.31,7.2827]
[1728570125203,0.8130491,137.32,137.3,18.2076]
[1728570125407,7.2832,137.31,137.27,25.4961]
[1728570125620,0.8130491,137.32,137.27,25.4961]
[1728570125621,0.8130491,137.32,137.27,18.2114]
[1728570125830,7.2828,137.31,137.27,25.4962]
[1728570126019,7.2828,137.31,137.28,1.45660406]
[1728570126224,0.8130491,137.32,137.27,18.2114]
[1728570126225,7.2833,137.3,137.27,18.2114]
[1728570126402,0.8130491,137.32,137.27,18.2114]
[1728570126613,8.0954491,137.32,137.28,8.74066159]
[1728570126838,0.8130491,137.32,137.27,18.2114]
[1728570127012,7.2828,137.31,137.27,25.4961]
[1728570127513,8.0953491,137.32,137.28,1.45656863]
[1728570127719,0.8130491,137.32,137.29,8.74037064]
[1728570127913,0.8130491,137.32,137.3,7.2832]
[1728570128105,0.8130491,137.32,137.29,18.2091]
[1728570128526,0.8130491,137.32,137.29,25.4924]
[1728570128712,0.8130491,137.32,137.31,7.2827]
[1728570130538,0.8130491,137.32,137.26,18.2124]
[1728570130702,7.2852,137.27,137.23,23.5713]
[1728570131128,7.2844,137.28,137.23,23.5713]
[1728570131310,7.2851,137.27,137.23,23.5712]
[1728570131507,18.2085,137.3,137.23,16.2843]
[1728570131704,0.8130491,137.32,137.25,1.45698535]
[1728570131908,0.8130491,137.32,137.3,7.2833]
[1728570132137,0.8130491,137.32,137.29,7.2837]
[1728570132316,8.0955491,137.32,137.28,25.494]
[1728570132835,0.8130491,137.32,137.3,7.2831]
[1728570133030,0.8130491,137.32,137.29,0.25098]
[1728570133239,0.8130491,137.32,137.31,8.73901315]
[1728570133416,0.8130491,137.32,137.3,18.208]
[1728570133813,0.8130491,137.32,137.24,6.6012]
[1728570133814,7.2833,137.3,137.26,7.2852]
[1728570134020,2.26112098,137.32,137.24,6.6012]
[1728570134021,0.8130491,137.32,137.24,24.8164]
[1728570134331,7.22145,137.29,137.25,7.2858]
[1728570134634,7.2844,137.28,137.24,24.8164]
[1728570134808,7.2839,137.29,137.25,7.2859]
[1728570135011,20.46742098,137.32,137.24,24.8164]
[1728570135012,20.46742098,137.32,137.24,6.6012]
[1728570135205,18.2086,137.3,137.24,6.6012]
[1728570135435,7.285,137.27,137.24,6.6012]
[1728570135966,1.44807188,137.26,137.19,15.4985]
[1728570136246,81.0714491,137.32,137.19,15.4985]
[1728570136247,7.2876,137.22,137.19,15.4985]
[1728570136537,7.2872,137.23,137.19,22.7876]
[1728570136722,7.2866,137.24,137.2,1.4574503]
[1728570136919,7.2866,137.24,137.2,8.7460503]
[1728570137120,7.287,137.23,137.19,41.0098]
[1728570137324,18.2139,137.26,137.17,6.0937]
[1728570137627,7.2881,137.21,137.17,13.3837]
[1728570138130,7.2882,137.21,137.18,1.45756818]
[1728570138336,18.2171,137.24,137.15,22.8901]
[1728570138521,7.289,137.2,137.15,22.8901]
[1728570138914,1.44807188,137.23,137.17,7.2901]
[1728570138915,7.2881,137.21,137.17,7.2901]
[1728570139236,8.73547188,137.23,137.18,1.45759714]
[1728570139419,21.44807188,137.26,137.18,1.45759714]
[1728570139754,7.2876,137.22,137.18,7.2896]
[1728570139939,7.2869,137.24,137.19,8.74612394]
[1728570140143,1.44807188,137.26,137.18,0.12549]
[1728570140341,1.44807188,137.26,137.17,18.2248]
[1728570140342,7.2882,137.21,137.17,25.5149]
[1728570140648,1.44807188,137.26,137.18,1.45759547]
[1728570140820,7.2881,137.21,137.18,0.12549]
[1728570141528,1.44807188,137.24,137.18,1.58306861]
[1728570141837,1.44807188,137.24,137.18,1.45757861]
[1728570142037,7.2898,137.18,137.14,25.5203]
[1728570142244,1.44807188,137.22,137.11,33.3038]
[1728570142436,18.2211,137.21,137.11,33.3038]
[1728570142636,7.2911,137.16,137.11,40.597]
[1728570142844,7.292,137.14,137.1,7.2935]
[1728570145149,7.2908,137.16,137.11,8.75140872]
[1728570145350,8.73817188,137.18,137.13,7.2918]
[1728570145556,7.2903,137.17,137.14,1.45819568]
[1728570145859,7.2897,137.18,137.14,8.74989568]
[1728570146650,7.2897,137.18,137.14,7.2917]
[1728570147037,1.44807188,137.21,137.1,44.027864]
[1728570147256,16.1322,137.23,137.15,7.2912]
[1728570147257,7.2892,137.19,137.15,7.2912]
[1728570147455,1.44807188,137.2,137.15,7.2912]
[1728570147456,8.73687188,137.2,137.15,7.2912]
[1728570147753,7.2892,137.19,137.15,7.2912]
[1728570148968,7.2882,137.21,137.16,8.87370625]
[1728570149143,7.2882,137.21,137.17,7.2901]
[1728570149344,7.2877,137.22,137.18,1.45770453]
[1728570149571,7.2877,137.22,137.18,8.74720453]
[1728570149868,7.2877,137.22,137.16,18.35199]
[1728570149869,7.2881,137.21,137.17,7.41559]
[1728570150084,7.2892,137.19,137.15,22.4329]
[1728570150253,1.44807188,137.23,137.15,15.1417]
[1728570150569,7.289,137.2,137.15,22.4326]
[1728570150872,7.2892,137.19,137.16,1.45779984]
[1728570151571,1.44807188,137.23,137.15,15.1417]
[1728570151895,7.2868,137.24,137.2,7.2886]
[1728570152170,1.44807188,137.26,137.2,0.12549]
[1728570152353,1.44807188,137.29,137.2,7.53938]
[1728570152685,7.2872,137.23,137.19,25.5115]
[1728570153048,7.2865,137.24,137.2,7.53948]
[1728570153670,7.2872,137.23,137.19,18.2225]
[1728570153880,1.44807188,137.22,137.17,6.6013]
[1728570154045,1.44807188,137.26,137.17,6.6013]
[1728570154367,7.2891,137.19,137.17,6.6013]
[1728570154678,7.2887,137.2,137.17,6.6013]
[1728570155969,7.2876,137.22,137.18,7.2896]
[1728570156172,5.7885,137.21,137.17,13.8913]
[1728570156371,7.2882,137.21,137.17,13.8915]
[1728570157071,1.44807188,137.23,137.17,6.6013]
[1728570157274,7.2876,137.22,137.18,7.2893]
[1728570157474,7.2887,137.2,137.17,6.6013]
[1728570158372,7.2887,137.2,137.16,18.35129]
[1728570158687,7.2892,137.19,137.16,18.35129]
[1728570159474,7.2888,137.2,137.16,25.64199]
[1728570159874,1.44807188,137.22,137.17,1.4577343]
[1728570160061,1.44807188,137.25,137.18,7.2896]
[1728570160253,1.44807188,137.25,137.19,1.45760453]
[1728570160574,7.2881,137.21,137.17,7.54098]
[1728570161081,7.2876,137.22,137.18,7.2895]
[1728570161455,7.2881,137.21,137.17,7.54098]
[1728570162080,7.2877,137.22,137.18,7.2896]
[1728570162282,1.44807188,137.25,137.2,7.2883]
[1728570162283,7.2866,137.24,137.2,7.2883]
[1728570162476,7.2866,137.24,137.21,1.45738335]
[1728570162786,7.2871,137.23,137.19,7.53998]
[1728570163785,7.2868,137.24,137.2,8.74591688]
[1728570163974,7.2868,137.24,137.2,7.2885]
[1728570164886,1.44807188,137.23,137.16,36.4518]
[1728570165079,7.2884,137.21,137.17,7.2899]
[1728570165571,7.2884,137.21,137.17,25.5154]
[1728570166560,1.44807188,137.24,137.17,18.2255]
[1728570166762,7.2889,137.2,137.16,7.2905]
[1728570167175,7.2882,137.21,137.17,7.29]
[1728570167585,1.44807188,137.22,137.15,22.4327]
[1728570167764,19.66867188,137.21,137.14,6.5751]
[1728570167970,19.66867188,137.21,137.13,18.2297]
[1728570168298,7.2907,137.16,137.13,18.2297]
[1728570168469,7.2907,137.16,137.12,7.2927]
[1728570168871,7.2919,137.14,137.11,22.6078]
[1728570169072,1.44807188,137.18,137.11,22.6078]
[1728570169380,7.2914,137.15,137.11,29.9007]
[1728570169904,7.2909,137.16,137.12,7.2928]
[1728570170210,7.2898,137.18,137.14,7.2914]
[1728570170497,18.2199,137.22,137.14,7.2914]
[1728570170498,7.2886,137.2,137.16,7.2902]
[1728570170673,7.2886,137.2,137.17,1.4578501]
[1728570171194,7.2886,137.2,137.16,7.2902]
[1728570171400,7.2886,137.2,137.17,1.45784995]
[1728570172017,1.44807188,137.22,137.14,18.2293]
[1728570172305,7.2893,137.19,137.15,7.2912]
[1728570172781,1.44807188,137.22,137.14,25.5209]
[1728570172987,1.44807188,137.22,137.11,40.8406]
[1728570173182,18.2231,137.19,137.12,1.45791504]
[1728570173392,7.2904,137.17,137.13,7.2922]
[1728570173607,7.2904,137.17,137.14,1.4581447]
[1728570174313,1.44807188,137.18,137.14,1.4581447]
[1728570174487,7.2898,137.18,137.14,7.2914]
[1728570174686,7.2898,137.18,137.15,1.45801162]
[1728570175610,7.2893,137.19,137.15,7.2909]
[1728570175990,7.2897,137.18,137.15,7.2909]
[1728570176283,7.2895,137.19,137.15,7.2909]
[1728570176686,7.2911,137.16,137.12,25.65009]
[1728570177711,7.2906,137.17,137.13,1.45812555]
[1728570179328,1.44807188,137.19,137.12,18.35759]
[1728570179496,18.2247,137.18,137.11,29.901]
[1728570179816,1.44807188,137.17,137.12,7.2927]
[1728570180024,7.2913,137.15,137.11,48.1343]
[1728570180323,7.2913,137.15,137.02,70.0]
[1728570180324,7.2934,137.11,137.08,40.7358]
[1728570180511,7.2934,137.11,137.08,33.4409]
[1728570180713,1.44807188,137.15,137.08,33.4409]
[1728570181036,7.2914,137.15,137.11,7.2933]
[1728570181219,7.2914,137.15,137.12,1.45832856]
[1728570181718,1.44807188,137.18,137.12,1.45832856]
[1728570181910,1.44807188,137.18,137.08,15.2045]
[1728570181911,1.44807188,137.18,137.09,0.12549]
[1728570182118,1.44807188,137.18,137.09,24.027864]
[1728570182495,1.44807188,137.18,137.12,7.2927]
[1728570182496,7.2908,137.16,137.12,7.2927]
[1728570183422,7.2908,137.16,137.07,6.1478]
[1728570183423,7.2955,137.07,137.02,7.298]
[1728570183732,7.2975,137.04,137.01,6.1537]
[1728570183901,7.2978,137.03,136.99,18.2485]
[1728570184105,18.2394,137.07,136.98,13.5491]
[1728570184106,7.2982,137.02,136.98,6.2492]
[1728570184305,7.2977,137.03,136.98,6.2492]
[1728570184511,7.2971,137.04,136.99,8.75941605]
[1728570185435,1.44807188,137.03,136.96,7.3013]
[1728570185744,1.44807188,137.03,136.95,6.175]
[1728570185928,7.3007,136.98,136.95,6.175]
[1728570186129,19.69307188,137.03,136.95,6.175]
[1728570186130,7.2999,136.99,136.95,6.175]
[1728570186429,19.69307188,137.03,136.95,6.175]
[1728570186430,7.2988,137.01,136.96,7.3013]
[1728570186621,7.2981,137.03,136.97,7.3006]
[1728570186819,1.44807188,137.05,136.96,18.2527]
[1728570187030,7.2987,137.01,136.97,7.3008]
[1728570187342,1.44807188,137.0,136.95,6.175]
[1728570187518,7.2998,136.99,136.97,1.45974115]
[1728570187719,7.2993,137.0,136.96,1.45995482]
[1728570188033,19.69087188,137.04,136.96,1.45993813]
[1728570188236,7.3004,136.98,136.95,6.175]
[1728570188426,7.3009,136.97,136.95,6.175]
[1728570188621,18.2462,137.02,136.93,33.778]
[1728570188950,7.3009,136.97,136.93,33.778]
[1728570189440,7.3009,136.97,136.93,41.0809]
[1728570189648,1.44807188,137.01,136.94,7.3023]
[1728570189941,7.2999,136.99,136.95,7.3017]
[1728570190131,7.2999,136.99,136.94,8.7626087]
[1728570190335,7.2993,137.0,136.95,7.3018]
[1728570190526,7.2986,137.02,136.96,8.76080866]
[1728570190732,7.2989,137.01,136.96,1.45990866]
[1728570191049,7.2989,137.01,136.96,7.55188]
[1728570191723,1.44807188,137.04,136.96,0.25098]
[1728570191922,1.44807188,137.04,136.95,18.2536]
[1728570191923,7.2999,136.99,136.95,18.2536]
[1728570192351,7.2999,136.99,136.95,25.5554]
[1728570192562,7.3017,136.96,136.93,15.5208]
[1728570192751,7.3009,136.97,136.93,15.5208]
[1728570193974,7.3015,136.96,136.93,0.12549]
[1728570194672,1.44807188,137.0,136.92,18.2582]
[1728570194673,7.302,136.95,136.92,18.2582]
[1728570194966,7.3025,136.94,136.9,7.3043]
[1728570195169,7.3014,136.96,136.91,7.3038]
[1728570195464,1.44807188,136.98,136.92,1.46032364]
[1728570195675,18.2461,137.02,136.93,18.257]
[1728570195871,7.3002,136.99,136.94,7.302]
[1728570196061,7.2993,137.0,136.94,0.12549]
[1728570196368,7.2993,137.0,136.95,25.5562]
[1728570196570,1.44807188,137.04,136.95,25.5562]
[1728570196861,7.2999,136.99,136.95,25.5562]
[1728570197078,7.2999,136.99,136.95,18.2544]
[1728570197465,7.3005,136.98,136.94,7.3024]
[1728570197952,7.2999,136.99,136.95,8.76202153]
[1728570198161,7.2999,136.99,136.95,7.3019]
[1728570198365,7.3004,136.98,136.93,7.42809]
[1728570198566,7.3009,136.97,136.93,7.42809]
[1728570198767,7.3004,136.98,136.93,7.42809]
[1728570198944,7.3004,136.98,136.94,1.4602021]
[1728570199151,7.2998,136.99,136.95,7.55238]
[1728570199364,7.2988,137.01,136.97,7.3005]
[1728570199650,1.44807188,137.03,136.96,18.253]
[1728570199963,7.2985,137.02,136.97,7.55138]
[1728570200453,7.2985,137.02,136.98,7.3002]
[1728570200645,7.2985,137.02,136.99,1.45973565]
[1728570200851,7.2985,137.02,136.98,7.3002]
[1728570201078,7.2985,137.02,136.99,1.45971165]
[1728570201270,7.2985,137.02,136.98,7.3002]
[1728570201271,1.44807188,137.05,137.0,1.4597117]
[1728570201584,18.2397,137.07,137.0,1.4597117]
[1728570201585,7.2965,137.06,137.02,7.2982]
[1728570201953,1.44807188,137.09,137.03,1.45928793]
[1728570202277,1.44807188,137.09,137.05,7.2962]
[1728570202278,7.2948,137.09,137.05,7.2962]
[1728570202655,1.44807188,137.12,137.06,8.75495768]
[1728570202656,7.294,137.1,137.06,8.75495768]
[1728570202849,7.294,137.1,137.06,7.296]
[1728570203281,1.44807188,137.13,137.07,1.58436243]
[1728570203456,7.2911,137.16,137.11,7.2933]
[1728570203659,8.73777188,137.18,137.13,7.2923]
[1728570203853,7.2897,137.18,137.14,1.45813921]
[1728570204051,7.2892,137.19,137.14,8.74993921]
[1728570204484,7.2892,137.19,137.14,7.2918]
[1728570204771,7.2902,137.18,137.13,7.41779]
[1728570205156,7.2902,137.17,137.12,18.35669]
[1728570205369,1.44807188,137.21,137.12,18.35669]
[1728570205567,1.44807188,137.21,137.11,0.12549]
[1728570205770,1.44807188,137.21,137.06,6.4786]
[1728570205965,7.2926,137.13,137.06,6.4786]
[1728570206167,7.2926,137.13,137.08,7.2945]
[1728570206676,7.2926,137.13,137.09,7.2944]
[1728570206980,7.2929,137.12,137.07,25.5331]
[1728570207279,7.2929,137.12,137.08,7.2949]
[1728570207675,7.2924,137.13,137.08,7.2949]
[1728570208100,1.44807188,137.16,137.09,1.45852138]
[1728570208399,7.2912,137.16,137.12,0.12549]
[1728570208575,7.2903,137.17,137.12,0.12549]
[1728570208774,7.2903,137.17,137.12,8.87604722]
[1728570208990,1.44807188,137.2,137.13,0.12549]
[1728570209177,1.44807188,137.2,137.14,7.41679]
[1728570209178,7.2893,137.19,137.14,7.41679]
[1728570209380,7.2887,137.2,137.15,8.7490225]
[1728570209582,7.2903,137.17,137.13,18.2301]
[1728570209785,1.44807188,137.19,137.12,7.2928]
[1728570210007,7.2903,137.17,137.13,0.12549]
[1728570210200,1.44807188,137.2,137.13,0.12549]
[1728570210504,1.44807188,137.2,137.13,0.25098]
[1728570210706,1.44807188,137.2,137.13,0.12549]
[1728570211075,1.44807188,137.2,137.12,18.2315]
[1728570211386,7.2913,137.15,137.12,18.2315]
[1728570211705,7.2909,137.16,137.13,1.45821571]
[1728570211909,1.44807188,137.19,137.08,7.2945]
[1728570212080,7.2932,137.12,137.07,7.295]
[1728570212276,7.2929,137.12,137.07,7.2954]
[1728570212997,7.2929,137.12,137.08,7.2948]
[1728570214021,7.2937,137.11,137.06,32.0138]
[1728570215003,7.2929,137.12,137.07,1.45868015]
[1728570215384,7.2927,137.13,137.08,7.54548]
[1728570215710,7.2921,137.14,137.1,7.41939]
[1728570216408,7.293,137.12,137.09,0.12549]
[1728570216601,7.2925,137.13,137.09,0.12549]
[1728570217185,7.2925,137.13,137.09,7.41979]
[1728570218181,7.2936,137.11,137.07,0.25098]
[1728570218386,7.293,137.12,137.07,9.00469681]
[1728570218694,1.44807188,137.15,137.07,7.54608]
[1728570218695,7.2934,137.11,137.07,7.54608]
[1728570219299,18.23,137.14,137.05,33.7042]
[1728570219491,1.44807188,137.13,137.05,41.0006]
[1728570219688,7.2941,137.1,137.06,7.2958]
[1728570219885,7.2929,137.12,137.08,7.2949]
[1728570220097,7.2916,137.15,137.11,7.2932]
[1728570220298,18.2264,137.17,137.12,1.45825987]
[1728570220299,19.67447188,137.17,137.12,1.45825987]
[1728570220505,7.294,137.1,137.06,7.2957]
[1728570220701,7.294,137.1,137.07,0.12549]
[1728570220891,7.2948,137.09,137.06,0.12549]
[1728570221310,1.44807188,137.12,137.06,0.12549]
[1728570221495,18.2311,137.13,137.06,0.12549]
[1728570221696,7.2937,137.11,137.07,7.2955]
[1728570221890,7.2944,137.1,137.06,7.42139]
[1728570222090,1.44807188,137.12,137.06,0.12549]
[1728570222312,7.2954,137.08,137.04,7.2971]
[1728570222525,7.2956,137.07,137.03,13.7444]
[1728570223632,7.296,137.06,137.03,6.447]
[1728570224129,7.2956,137.07,137.04,1.45914213]
[1728570224330,7.2956,137.07,137.03,13.7445]
[1728570224331,19.68177188,137.11,137.03,6.447]
[1728570224828,1.44807188,137.11,137.03,6.447]
[1728570225032,18.2378,137.08,137.03,6.447]
[1728570225231,1.44807188,137.07,137.01,33.8641]
[1728570225440,1.44807188,137.07,137.0,6.498]
[1728570225441,7.2977,137.03,137.0,6.498]
[1728570225737,7.2991,137.01,136.97,21.7434]
[1728570226140,7.2991,137.01,136.97,29.0439]
[1728570226440,7.2991,137.01,136.97,21.7434]
[1728570226643,7.2997,137.0,136.97,6.3479]
[1728570226854,7.2983,137.02,136.98,8.76001911]
[1728570227852,1.44807188,137.04,136.98,0.12549]
[1728570228051,7.2987,137.01,136.98,0.12549]
[1728570228546,7.2987,137.01,136.97,24.5997]
[1728570228749,7.2983,137.02,136.98,1.45977976]
[1728570228947,7.3003,136.98,136.94,47.0744]
[1728570229148,1.44807188,137.01,136.94,47.0744]
[1728570229149,7.2999,136.99,136.95,7.3018]
[1728570229646,1.44807188,137.01,136.95,7.3018]
[1728570229950,7.2987,137.01,136.97,7.3008]
[1728570231251,18.2432,137.04,136.96,0.12549]
[1728570231555,7.3,136.99,136.95,7.55268]
[1728570232547,7.3,136.99,136.94,21.517]
[1728570232548,7.3003,136.98,136.94,28.8191]